[Event "27th CRO-chT Women 2018"]
[Site "Biograd"]
[Date "2018.09.13"]
[Round "7.5"]
[White "Lakos, Nikoletta"]
[Black "Janzelj, Lara"]
[Result "0-1"]
[ECO "C55"]
[WhiteElo "2258"]
[BlackElo "2254"]
[Annotator "NA"]
[PlyCount "80"]
[EventDate "2018.09.08"]
[EventType "team-tourn"]
[EventCountry "CRO"]
[SourceTitle "playchess.com"]
[Source "ChessBase"]
[SourceQuality "1"]
[TimeControl "40/5400+30:1800+30"]

1. e4 {[%emt 0:00:30]} e5 {[%emt 0:00:30]} 2. Nf3 {[%emt 0:00:00]} Nc6 {[%emt 0:00:00]} 3. Bc4 {[%emt 0:00:00]} Nf6 {[%emt 0:00:00]} 4. d3 {[%emt 0:00:30]} h6 {[%emt 0:00:00]} 5. c3 {[%emt 0:03:30]} d6 {[%emt 0:01:00]} 6. Bb3 {[%emt 0:03:30]} g5 {[%emt 0:06:30] C55: Zweispringerspiel} (6... Qe7 7. Nbd2 g6 8. Nf1 Bg7 9. Ne3 O-O 10. O-O Nd8 11. Re1 c6 12. h3 Ne6 13. g3 Nc5 14. Kg2 Nxb3 15. axb3 {0-1 (44) Tsydypov,Z (2529)-Fedoseev,V (2731) Sochi 2017}) 7. Nbd2 $146 {[%emt 0:26:30]} ({Vorgänger:} 7. h4 g4 8. Nh2 Ne7 9. Nd2 d5 10. Qe2 d4 11. Nc4 Ng6 12. h5 Nxh5 13. Nxg4 Nhf4 14. Bxf4 Nxf4 {1-0 (29) Kofidis,A (2415)-Tsougievski Nikea 2000}) 7... Bg7 {[%emt 0:01:30]} 8. Nc4 {[%emt 0:08:30]} Be6 {[%emt 0:06:30]} 9. Ne3 {[%emt 0:17:30]} d5 {[%emt 0:10:30]} 10. Ba4 {[%emt 0:01:30]} O-O {[%emt 0:04:30]} 11. Bxc6 {[%emt 0:02:30]} bxc6 {[%emt 0:00:30]} 12. Nxe5 {[%emt 0:00:30]} dxe4 {[%emt 0:15:30]} 13. dxe4 {[%emt 0:02:30]} Qe8 {[%emt 0:04:30]} 14. Qa4 {[%emt 0:10:50]} (14. f3 $11 {keeps the balance.}) 14... c5 {[%emt 0:04:30]} 15. Qxe8 {[%emt 0:03:43]} Rfxe8 {[%emt 0:00:30]} 16. f3 {[%emt 0:04:18]} Nxe4 {[%emt 0:01:30]} 17. fxe4 {[%emt 0:01:08]} Bxe5 {[%emt 0:00:30]} 18. O-O {[%emt 0:00:47]} Rad8 {[%emt 0:02:30]} 19. h3 {[%emt 0:02:08]} Kg7 {[%emt 0:05:30]} 20. Rd1 {[%emt 0:03:52]} Kg6 {[%emt 0:05:30]} 21. Rxd8 {[%emt 0:01:08]} Rxd8 {[%emt 0:00:30]} 22. Kf2 {[%emt 0:00:12]} Bc8 {[%emt 0:02:30]} 23. Nd5 {[%emt 0:00:44]} Rd7 {[%emt 0:02:30]} 24. Ne3 {[%emt 0:00:46]} Bb7 {[%emt 0:00:30]} 25. Nc4 {[%emt 0:00:36]} Bg7 {[%emt 0:02:30]} 26. Be3 {[%emt 0:00:16]} Bxe4 {[%emt 0:01:30]} 27. Bxc5 {[%emt 0:00:06]} a6 {[%emt 0:02:28]} 28. g3 {[%emt 0:02:18]} (28. Be3 $15) 28... Rd5 {[%emt 0:01:00]} 29. Be3 {[%emt 0:00:42]} Rf5+ {[%emt 0:03:17]} 30. Ke2 {[%emt 0:00:11]} Bf3+ {[%emt 0:00:12]} 31. Kd2 {[%emt 0:01:25] [#]} (31. Kd3 {ist eine bessere Verteidigung.}) 31... Bd5 $1 {[%emt 0:00:36]} 32. Na3 {[%emt 0:01:40]} Rf3 $19 {[%emt 0:00:20]} 33. Rg1 {[%emt 0:00:23]} Be5 {[%emt 0:00:23]} 34. Nc2 {[%emt 0:00:41]} Rxg3 {[%emt 0:01:24]} 35. Nd4 {[%emt 0:00:51]} Rxg1 {[%emt 0:00:39]} 36. Bxg1 {[%emt 0:00:04]} Bg2 {[%emt 0:00:27]} 37. h4 {[%emt 0:00:16]} gxh4 {[%emt 0:00:40]} 38. Ke2 {[%emt 0:00:26]} h3 {[%emt 0:00:20]} 39. Nf3 {[%emt 0:00:11]} Bxf3+ {[%emt 0:00:09]} 40. Kxf3 {[%emt 0:00:00]} h2 {[%emt 0:00:00]} 0-1

[Event "27th CRO-chT Women 2018"]
[Site "Biograd"]
[Date "2018.09.13"]
[Round "7.6"]
[White "Kruljac, Petra"]
[Black "Stadler, Brigita"]
[Result "1/2-1/2"]
[ECO "A03"]
[WhiteElo "2069"]
[BlackElo "2067"]
[Annotator "NA"]
[PlyCount "40"]
[EventDate "2018.09.08"]
[EventType "team-tourn"]
[EventCountry "CRO"]
[SourceTitle "playchess.com"]
[Source "ChessBase"]
[SourceQuality "1"]
[TimeControl "40/5400+30:1800+30"]

1. b3 {[%emt 0:03:30]} Nf6 {[%emt 0:00:30]} 2. Bb2 {[%emt 0:00:00]} d5 {[%emt 0:01:30]} 3. e3 {[%emt 0:00:00]} Bf5 {[%emt 0:00:30]} 4. f4 {[%emt 0:01:30]} e6 {[%emt 0:02:30]} 5. Nf3 {[%emt 0:01:30]} Nbd7 {[%emt 0:01:30]} 6. Be2 {[%emt 0:00:00]} Ne4 {[%emt 0:04:30]} 7. O-O {[%emt 0:03:00]} Ndf6 {[%emt 0:09:30]} 8. Ne5 {[%emt 0:01:30]} h5 {[%emt 0:05:30]} 9. d3 {[%emt 0:10:30]} Nd6 {[%emt 0:00:30]} 10. c4 {[%emt 0:12:30]} c6 {[%emt 0:11:30]} 11. c5 {[%emt 0:10:30]} Nb5 {[%emt 0:00:30]} 12. b4 {[%emt 0:01:30]} a5 {[%emt 0:03:30]} 13. a3 {[%emt 0:10:30]} axb4 $16 {[%emt 0:03:30]} 14. axb4 {[%emt 0:00:00]} Rxa1 {[%emt 0:01:30]} 15. Bxa1 {[%emt 0:00:00]} Qa8 {[%emt 0:00:30]} 16. Bb2 {[%emt 0:00:30]} Be7 {[%emt 0:04:30]} 17. Bf3 {[%emt 0:08:30]} b6 {[%emt 0:09:30]} 18. e4 {[%emt 0:10:30]} Bg4 {[%emt 0:02:30]} 19. Bxg4 {[%emt 0:03:39]} hxg4 {[%emt 0:00:30]} 20. Nxg4 {[%emt 0:02:35]} bxc5 {[%emt 0:00:30]} 1/2-1/2

[Event "27th CRO-chT Women 2018"]
[Site "Biograd"]
[Date "2018.09.13"]
[Round "7.10"]
[White "Sulc, Gordana"]
[Black "Ivekovic, Tihana"]
[Result "0-1"]
[ECO "B42"]
[WhiteElo "1866"]
[BlackElo "2114"]
[Annotator "ChessBase"]
[PlyCount "118"]
[EventDate "2018.09.08"]
[EventType "team-tourn"]
[EventCountry "CRO"]
[SourceTitle "playchess.com"]
[Source "ChessBase"]
[SourceQuality "1"]
[TimeControl "40/5400+30:1800+30"]

1. e4 {[%emt 0:00:30]} c5 {[%emt 0:00:30]} 2. Nf3 {[%emt 0:00:00]} e6 {[%emt 0:00:00]} 3. d4 {[%emt 0:00:00]} cxd4 {[%emt 0:00:00]} 4. Nxd4 {[%emt 0:00:00]} a6 {[%emt 0:00:00]} 5. Bd3 {[%emt 0:00:00]} Nf6 {[%emt 0:00:00]} 6. Qe2 {[%emt 0:00:30]} d6 {[%emt 0:00:30]} 7. c4 {[%emt 0:00:30]} Qc7 {[%emt 0:00:00]} 8. O-O {[%emt 0:00:30]} g6 {[%emt 0:00:00]} 9. Nc3 {[%emt 0:01:30]} Bg7 {[%emt 0:00:30]} 10. Be3 {[%emt 0:11:30]} O-O {[%emt 0:00:30]} 11. Rac1 {[%emt 0:00:00]} Nbd7 {[%emt 0:10:30]} 12. Kh1 {[%emt 0:11:00]} b6 {[%emt 0:03:30]} 13. f4 {[%emt 0:02:30]} Bb7 {[%emt 0:02:30]} 14. Bg1 {[%emt 0:04:30]} Nc5 {[%emt 0:05:30]} 15. Bb1 {[%emt 0:00:30]} Rac8 {[%emt 0:01:30]} 16. b3 {[%emt 0:02:30]} Rfe8 {[%emt 0:04:30]} 17. Nf3 {[%emt 0:04:30]} Nh5 {[%emt 0:05:30]} 18. Ne1 {[%emt 0:01:30]} Qc6 {[%emt 0:07:30]} 19. Bxc5 {[%emt 0:07:30]} bxc5 {[%emt 0:02:30]} 20. Nd3 {[%emt 0:00:30]} Bxc3 {[%emt 0:01:30]} 21. Rxc3 {[%emt 0:00:00]} Qxe4 {[%emt 0:00:00]} 22. Nc1 {[%emt 0:07:00]} Qxe2 {[%emt 0:06:00]} 23. Nxe2 {[%emt 0:00:30]} d5 {[%emt 0:00:30]} 24. Ng3 {[%emt 0:03:30]} Nf6 {[%emt 0:00:30]} 25. Re1 {[%emt 0:01:30]} Ng4 {[%emt 0:02:30]} 26. h3 {[%emt 0:00:30]} d4 {[%emt 0:00:00]} 27. hxg4 {[%emt 0:01:30]} dxc3 {[%emt 0:00:00]} 28. Ne2 {[%emt 0:00:00]} Red8 {[%emt 0:00:30]} 29. Nxc3 {[%emt 0:00:00]} Rd4 {[%emt 0:00:30]} 30. Be4 {[%emt 0:01:30]} Bxe4 {[%emt 0:00:30]} 31. Nxe4 {[%emt 0:00:30]} f5 {[%emt 0:02:30]} 32. gxf5 {[%emt 0:02:30]} exf5 {[%emt 0:00:30]} 33. Ng5 {[%emt 0:00:30]} h6 {[%emt 0:01:30]} 34. Nf3 {[%emt 0:00:30]} Re4 {[%emt 0:00:00]} 35. Rd1 {[%emt 0:00:30]} Rc6 {[%emt 0:03:00]} 36. Ne5 {[%emt 0:11:30]} Re6 {[%emt 0:04:30]} 37. Rd8+ {[%emt 0:01:30]} Kg7 {[%emt 0:00:00]} 38. Rd7+ {[%emt 0:04:30]} Kf8 {[%emt 0:01:00]} 39. Rd8+ {[%emt 0:08:10]} Ke7 {[%emt 0:01:30]} 40. Rd7+ {[%emt 0:00:00]} Ke8 {[%emt 0:00:00]} 41. Rd5 {[%emt 0:03:20]} Rxf4 {[%emt 0:01:00]} 42. Nd3 {[%emt 0:01:30]} Rd4 {[%emt 0:05:30]} 43. Nxc5 {[%emt 0:04:30]} Re1+ {[%emt 0:00:30]} 44. Kh2 {[%emt 0:00:30]} Rxd5 {[%emt 0:01:30]} 45. cxd5 {[%emt 0:00:30]} a5 {[%emt 0:00:30]} 46. Nb7 {[%emt 0:10:30]} a4 {[%emt 0:01:30]} 47. bxa4 {[%emt 0:02:30]} Ra1 {[%emt 0:00:30]} 48. Kg3 {[%emt 0:00:30]} Rxa2 {[%emt 0:00:00]} 49. a5 {[%emt 0:00:30]} Ra4 {[%emt 0:03:00]} 50. Kf3 {[%emt 0:00:30]} g5 {[%emt 0:01:30]} 51. g3 {[%emt 0:00:30]} Ra3+ {[%emt 0:00:30]} 52. Kf2 {[%emt 0:00:30]} g4 {[%emt 0:06:30]} 53. Nd6+ {[%emt 0:04:30]} Kd7 {[%emt 0:00:30]} 54. Nc4 {[%emt 0:00:00]} Rc3 {[%emt 0:01:30]} 55. Ne3 {[%emt 0:02:25]} Rc5 {[%emt 0:05:30]} 56. Nxf5 {[%emt 0:02:45]} h5 {[%emt 0:00:00]} 57. Ng7 {[%emt 0:05:51]} Rxd5 {[%emt 0:03:00]} 58. a6 {[%emt 0:00:11]} Kc6 {[%emt 0:00:30]} 59. Ke3 {[%emt 0:05:31]} Rg5 {[%emt 0:00:30]} 0-1

[Event "27th CRO-chT Women 2018"]
[Site "Biograd"]
[Date "2018.09.13"]
[Round "7.11"]
[White "Cvitan, Ena"]
[Black "Mican, Karmela"]
[Result "1-0"]
[ECO "D02"]
[WhiteElo "2009"]
[BlackElo "1890"]
[Annotator "NA"]
[PlyCount "31"]
[EventDate "2018.09.08"]
[EventType "team-tourn"]
[EventCountry "CRO"]
[SourceTitle "playchess.com"]
[Source "ChessBase"]
[SourceQuality "1"]
[TimeControl "40/5400+30:1800+30"]

1. d4 {[%emt 0:00:30]} d5 {[%emt 0:00:30]} 2. Nf3 {[%emt 0:00:00]} Nf6 {[%emt 0:00:30]} 3. Bf4 {[%emt 0:00:00]} e6 {[%emt 0:00:30]} 4. e3 {[%emt 0:00:30]} Be7 {[%emt 0:01:30]} 5. Bd3 {[%emt 0:00:30]} Nh5 {[%emt 0:02:30]} 6. Be5 {[%emt 0:04:30]} f6 {[%emt 0:04:30]} 7. Nh4 {[%emt 0:11:30]} fxe5 $2 {[%emt 0:09:30]} (7... g6 $11 8. Bg3 Kf7) 8. Qxh5+ {[%emt 0:00:30]} Kd7 {[%emt 0:00:30]} 9. Nf3 {[%emt 0:00:30]} Nc6 {[%emt 0:03:30]} 10. Bb5 {[%emt 0:06:30]} ({Resist} 10. Nxe5+ $6 Nxe5 11. Qxe5 Bf6 $16) ({But not} 10. dxe5 $6 Nb4 $16) 10... Bf6 {[%emt 0:00:30]} 11. Nxe5+ {[%emt 0:13:30]} Bxe5 {[%emt 0:00:30]} 12. Qxe5 {[%emt 0:00:30]} Qe7 {[%emt 0:00:30]} 13. Nd2 $18 {[%emt 0:01:30]} b6 {[%emt 0:02:30]} 14. c4 {[%emt 0:04:30]} dxc4 {[%emt 0:04:30]} 15. d5 {[%emt 0:04:30]} exd5 {[%emt 0:03:30]} 16. Bxc6+ {[%emt 0:00:30]} 1-0

[Event "27th CRO-chT Women 2018"]
[Site "Biograd"]
[Date "2018.09.13"]
[Round "7.12"]
[White "Lijic, Kristina"]
[Black "Vujnovic, Patricija"]
[Result "1/2-1/2"]
[ECO "D12"]
[WhiteElo "1715"]
[BlackElo "2056"]
[Annotator "NA RC"]
[PlyCount "150"]
[EventDate "2018.09.08"]
[EventType "team-tourn"]
[EventCountry "CRO"]
[SourceTitle "playchess.com"]
[Source "ChessBase"]
[SourceQuality "1"]
[TimeControl "40/5400+30:1800+30"]

1. c4 {[%emt 0:00:30]} e6 {[%emt 0:00:30]} 2. Nf3 {[%emt 0:00:00]} d5 {[%emt 0:00:00]} 3. cxd5 {[%emt 0:01:00]} exd5 {[%emt 0:00:00]} 4. d4 {[%emt 0:01:30]} c6 {[%emt 0:02:30]} 5. Nc3 {[%emt 0:05:30]} Bf5 {[%emt 0:00:30]} 6. e3 {[%emt 0:03:30]} Nf6 {[%emt 0:02:30]} 7. Bd3 {[%emt 0:03:30]} Bxd3 {[%emt 0:01:30]} 8. Qxd3 {[%emt 0:00:30]} Bd6 {[%emt 0:01:30]} 9. O-O {[%emt 0:01:30] D12: Slav Defence: 3 Nf3 Nf6 4 e3 Bf5} (9. Ne5 Bxe5 10. dxe5 Nfd7 11. e4 Nxe5 12. Qg3 Ng6 13. exd5 cxd5 14. Bg5 f6 15. O-O-O O-O 16. Rxd5 Qc8 {½-½ (32) Frosch,R (2302)-Kreisl,R (2444) Austria 2017}) 9... O-O {[%emt 0:01:30]} 10. e4 {[%emt 0:04:30]} dxe4 {[%emt 0:01:30]} 11. Nxe4 {[%emt 0:00:30]} Nxe4 {[%emt 0:01:30]} 12. Qxe4 {[%emt 0:00:30]} Nd7 {[%emt 0:02:30]} 13. Be3 $146 {[%emt 0:02:30]} ({Predecessor:} 13. Bg5 Qc7 14. Rfe1 Nb6 15. g3 Nd5 16. Nh4 Qd7 {½-½ (56) Valles Mata,D (2150)-Gomez Anadon,D (2256) Spain 2010}) 13... Nf6 {[%emt 0:08:30]} 14. Qc2 {[%emt 0:01:30]} Qc7 {[%emt 0:04:30]} 15. h3 {[%emt 0:02:30]} Rfe8 {[%emt 0:03:30]} 16. Qf5 {[%emt 0:06:30]} Qd7 {[%emt 0:03:30]} 17. Qxd7 {[%emt 0:02:30]} Nxd7 {[%emt 0:03:30]} 18. Rac1 {[%emt 0:02:30]} Nb6 {[%emt 0:03:30]} 19. Nd2 {[%emt 0:04:30]} Nd5 {[%emt 0:00:30]} 20. Nc4 {[%emt 0:01:30]} Bc7 {[%emt 0:01:30]} 21. Rfe1 {[%emt 0:02:30]} Re4 {[%emt 0:06:30]} 22. f3 {[%emt 0:02:30]} Re6 {[%emt 0:00:30]} 23. Bd2 {[%emt 0:02:30]} Rae8 {[%emt 0:08:30]} 24. Kf1 {[%emt 0:03:30]} Bg3 {[%emt 0:04:30]} 25. Rxe6 {[%emt 0:00:30]} Rxe6 {[%emt 0:00:00]} 26. Na5 {[%emt 0:00:30]} Re7 {[%emt 0:00:00]} 27. b4 {[%emt 0:01:30]} a6 {[%emt 0:05:30]} 28. a4 {[%emt 0:01:30]} Rc7 {[%emt 0:03:30]} 29. Nb3 {[%emt 0:05:30]} h5 {[%emt 0:05:30]} 30. Nc5 {[%emt 0:02:30]} Bd6 {[%emt 0:02:30]} 31. Nd3 {[%emt 0:01:30]} g6 {[%emt 0:03:30]} 32. Re1 {[%emt 0:02:30]} Kg7 {[%emt 0:02:01]} 33. Re4 {[%emt 0:03:30]} Nf6 {[%emt 0:01:24]} 34. Re1 {[%emt 0:00:30]} Rd7 {[%emt 0:01:05]} 35. Bc3 {[%emt 0:01:30]} Bg3 {[%emt 0:00:49]} 36. Re2 {[%emt 0:00:30]} Nd5 {[%emt 0:01:10]} 37. Bd2 {[%emt 0:02:30]} Bd6 {[%emt 0:00:11]} 38. g4 {[%emt 0:02:30]} h4 {[%emt 0:01:06]} 39. Re4 {[%emt 0:02:30]} f6 {[%emt 0:03:03]} 40. Ke1 {[%emt 0:00:00]} Nb6 {[%emt 0:00:00]} 41. Nb2 {[%emt 0:09:00]} Kf7 {[%emt 0:08:11]} 42. Ke2 {[%emt 0:04:30]} Bg3 {[%emt 0:01:30]} 43. Kd3 {[%emt 0:06:30]} Bd6 {[%emt 0:05:30]} 44. Kc3 {[%emt 0:02:30]} Nd5+ {[%emt 0:03:30]} 45. Kb3 {[%emt 0:01:30]} Bg3 {[%emt 0:03:30]} 46. Nd3 {[%emt 0:01:30]} f5 {[%emt 0:03:30]} 47. Re2 {[%emt 0:01:30]} Nc7 {[%emt 0:04:47]} 48. Kc3 {[%emt 0:04:30]} Ne6 {[%emt 0:01:23]} 49. Be3 {[%emt 0:09:30]} Bc7 {[%emt 0:00:51]} 50. Bf2 {[%emt 0:02:07]} fxg4 {[%emt 0:06:18]} 51. fxg4 {[%emt 0:00:28]} g5 {[%emt 0:00:44]} 52. Be3 {[%emt 0:05:20]} Rd5 {[%emt 0:01:14]} 53. Rf2+ {[%emt 0:00:42]} Kg6 {[%emt 0:00:59]} 54. Nc5 {[%emt 0:02:51]} Nxc5 {[%emt 0:01:55]} 55. dxc5 {[%emt 0:00:03]} Be5+ {[%emt 0:01:50]} 56. Kc4 {[%emt 0:00:54]} Rd1 {[%emt 0:00:25]} 57. Rf5 {[%emt 0:00:59]} Bf6 {[%emt 0:00:28]} 58. Rf3 {[%emt 0:02:30]} Rb1 {[%emt 0:00:12]} 59. Bd2 {[%emt 0:01:07]} Rg1 {[%emt 0:00:55]} 60. Be3 {[%emt 0:00:48]} Rg2 {[%emt 0:01:20]} 61. Kd3 {[%emt 0:02:05]} Ra2 {[%emt 0:00:12]} 62. a5 {[%emt 0:00:43]} Ra3+ {[%emt 0:00:46]} 63. Ke2 {[%emt 0:00:59]} Ra2+ {[%emt 0:02:45]} 64. Kd3 {[%emt 0:00:38]} Be5 {[%emt 0:01:01]} 65. Rf5 {[%emt 0:00:25]} Ra3+ {[%emt 0:00:23]} 66. Ke4 {[%emt 0:00:21]} Bf6 {[%emt 0:00:27]} 67. Rf3 {[%emt 0:00:30]} Rb3 {[%emt 0:01:06]} 68. Bd2 {[%emt 0:00:18]} Rb1 {[%emt 0:00:10]} 69. Kd3 {[%emt 0:00:43]} Rh1 {[%emt 0:00:23]} 70. Ke4 {[%emt 0:00:06]} Rh2 {[%emt 0:00:11]} 71. Rd3 {[%emt 0:00:38]} Re2+ {[%emt 0:00:29]} 72. Kf3 {[%emt 0:00:09]} Rh2 {[%emt 0:00:31]} 73. Ke4 {[%emt 0:00:13]} Re2+ $11 {[%emt 0:00:19]} 74. Kf3 {[%emt 0:00:04]} Rh2 {[%emt 0:01:10]} 75. Ke4 {[%emt 0:00:03]} Re2+ {[%emt 0:00:00]} 1/2-1/2

[Event "27th CRO-chT Women 2018"]
[Site "Biograd"]
[Date "2018.09.14"]
[Round "8.1"]
[White "Ivekovic, Ana"]
[Black "Repkova, Eva"]
[Result "1/2-1/2"]
[ECO "E18"]
[WhiteElo "2118"]
[BlackElo "2288"]
[Annotator "ChessBase"]
[PlyCount "38"]
[EventDate "2018.09.08"]
[EventType "team-tourn"]
[EventCountry "CRO"]
[SourceTitle "playchess.com"]
[Source "ChessBase"]
[SourceQuality "1"]
[TimeControl "40/5400+30:1800+30"]

1. d4 {[%emt 0:00:30]} e6 {[%emt 0:00:30]} 2. c4 {[%emt 0:00:00]} Nf6 {[%emt 0:00:00]} 3. Nf3 {[%emt 0:00:00]} b6 {[%emt 0:00:00]} 4. g3 {[%emt 0:00:30]} Bb7 {[%emt 0:00:30]} 5. Bg2 {[%emt 0:00:30]} d6 {[%emt 0:00:30]} 6. b3 {[%emt 0:01:30]} Nbd7 {[%emt 0:00:00]} 7. Bb2 {[%emt 0:02:30]} Be7 {[%emt 0:01:00]} 8. O-O {[%emt 0:00:30]} O-O {[%emt 0:00:30]} 9. Nbd2 {[%emt 0:01:30]} Ne4 {[%emt 0:02:30]} 10. Nxe4 {[%emt 0:03:30]} Bxe4 {[%emt 0:00:00]} 11. Nd2 {[%emt 0:03:30]} Bxg2 {[%emt 0:00:00]} 12. Kxg2 {[%emt 0:00:30]} f5 {[%emt 0:00:30]} 13. e4 {[%emt 0:01:30]} Qe8 {[%emt 0:01:30]} 14. Qe2 {[%emt 0:02:30]} Qf7 {[%emt 0:10:30]} 15. f4 {[%emt 0:08:30]} Rfe8 {[%emt 0:07:30]} 16. Rad1 {[%emt 0:07:30]} Rad8 {[%emt 0:04:30]} 17. Nf3 {[%emt 0:03:30]} Qh5 {[%emt 0:08:30]} 18. Rfe1 {[%emt 0:09:30]} Nf8 {[%emt 0:08:30]} 19. d5 {[%emt 0:12:30]} fxe4 {[%emt 0:00:00]} 1/2-1/2

[Event "27th CRO-chT Women 2018"]
[Site "Biograd"]
[Date "2018.09.14"]
[Round "8.2"]
[White "Medic, Mirjana"]
[Black "Spiranec, Noemi"]
[Result "1-0"]
[ECO "E55"]
[WhiteElo "2167"]
[BlackElo "2035"]
[Annotator "NA"]
[PlyCount "73"]
[EventDate "2018.09.08"]
[EventType "team-tourn"]
[EventCountry "CRO"]
[SourceTitle "playchess.com"]
[Source "ChessBase"]
[SourceQuality "1"]
[TimeControl "40/5400+30:1800+30"]

1. d4 {[%emt 0:00:30]} Nf6 {[%emt 0:00:30]} 2. c4 {[%emt 0:00:00]} e6 {[%emt 0:00:00]} 3. Nc3 {[%emt 0:00:00]} Bb4 {[%emt 0:00:00]} 4. e3 {[%emt 0:00:30]} O-O {[%emt 0:00:30]} 5. Bd3 {[%emt 0:00:00]} d5 {[%emt 0:00:30]} 6. Nf3 {[%emt 0:00:00]} c5 {[%emt 0:00:00]} 7. O-O {[%emt 0:00:30]} dxc4 {[%emt 0:00:00]} 8. Bxc4 {[%emt 0:00:30]} Nbd7 {[%emt 0:00:00]} 9. Qb3 {[%emt 0:00:30]} Bxc3 {[%emt 0:09:00]} 10. bxc3 {[%emt 0:00:30]} Qc7 {[%emt 0:00:30]} 11. Re1 {[%emt 0:07:30]} cxd4 {[%emt 0:08:30]} 12. exd4 {[%emt 0:02:30]} Nb6 {[%emt 0:05:30]} 13. Bd3 {[%emt 0:06:30]} Bd7 {[%emt 0:00:30]} 14. c4 {[%emt 0:00:30]} Bc6 {[%emt 0:13:30]} 15. Ne5 {[%emt 0:06:30]} Rfd8 {[%emt 0:04:30]} 16. Be3 {[%emt 0:01:30]} Be4 {[%emt 0:05:30]} 17. Bf1 {[%emt 0:03:30]} h6 {[%emt 0:00:30]} 18. f3 {[%emt 0:06:30]} Bh7 {[%emt 0:01:30]} 19. Rad1 {[%emt 0:02:30]} Rac8 {[%emt 0:02:30]} 20. Bf2 {[%emt 0:05:30]} Nfd7 {[%emt 0:04:30]} 21. Bg3 {[%emt 0:06:30]} Nxe5 {[%emt 0:01:30]} 22. Bxe5 {[%emt 0:00:30]} Qc6 {[%emt 0:00:30]} 23. c5 {[%emt 0:02:30]} Nd7 {[%emt 0:02:30]} 24. Bb5 {[%emt 0:00:30]} Qd5 {[%emt 0:00:30]} 25. Qxd5 {[%emt 0:03:30]} exd5 {[%emt 0:00:00]} 26. Bd6 {[%emt 0:00:00]} Bf5 {[%emt 0:05:00]} 27. Re7 {[%emt 0:03:00]} a6 {[%emt 0:01:30]} 28. Ba4 {[%emt 0:00:30]} b5 {[%emt 0:04:30]} 29. Bb3 {[%emt 0:00:30]} Be6 {[%emt 0:00:30]} 30. Re1 {[%emt 0:01:30]} Rc6 {[%emt 0:07:30]} 31. Bc2 {[%emt 0:03:30]} Rdc8 {[%emt 0:01:30]} 32. R1xe6 {[%emt 0:00:30]} fxe6 {[%emt 0:00:30]} 33. Rxd7 {[%emt 0:00:30]} a5 {[%emt 0:02:30]} 34. Bg6 {[%emt 0:00:00]} Ra6 {[%emt 0:01:36]} 35. Bf7+ {[%emt 0:00:00]} Kh8 {[%emt 0:00:09]} 36. Bxe6 {[%emt 0:00:30]} Re8 {[%emt 0:00:11]} 37. Bxd5 {[%emt 0:00:30]} 1-0

[Event "27th CRO-chT Women 2018"]
[Site "Biograd"]
[Date "2018.09.14"]
[Round "8.3"]
[White "Kuhar, Larisa"]
[Black "Roklicer, Heike"]
[Result "1/2-1/2"]
[ECO "B16"]
[WhiteElo "1912"]
[BlackElo "2042"]
[Annotator "NA"]
[PlyCount "130"]
[EventDate "2018.09.08"]
[EventType "team-tourn"]
[EventCountry "CRO"]
[SourceTitle "playchess.com"]
[Source "ChessBase"]
[SourceQuality "1"]
[TimeControl "40/5400+30:1800+30"]

1. e4 {[%emt 0:00:30]} c6 {[%emt 0:00:30]} 2. d4 {[%emt 0:00:00]} d5 {[%emt 0:00:00]} 3. Nc3 {[%emt 0:00:00]} dxe4 {[%emt 0:00:00]} 4. Nxe4 {[%emt 0:00:00]} Nf6 {[%emt 0:00:30]} 5. Nxf6+ {[%emt 0:00:00]} gxf6 {[%emt 0:00:00]} 6. c3 {[%emt 0:01:30]} Bf5 {[%emt 0:00:00]} 7. Nf3 {[%emt 0:00:30]} e6 {[%emt 0:01:30]} 8. g3 {[%emt 0:02:30]} Qb6 {[%emt 0:00:00] B16: Caro-Kann (Nimzowitsch-Variante)} (8... h5 9. Bg2 Be4 10. O-O Be7 11. Re1 f5 12. h4 Nd7 13. Ng5 Bxg2 14. Kxg2 Nf8 15. Qe2 Ng6 16. a4 {1-0 (35) Sitnikov,A (2438)-Poliakov,V (2418) Kremennaya 2017}) 9. Bg2 {[%emt 0:01:30]} Qa6 {[%emt 0:00:00]} 10. Bf1 {[%emt 0:08:30]} Qa5 $146 {[%emt 0:00:30]} 11. Qe2 {[%emt 0:02:30]} Qd5 {[%emt 0:02:30]} 12. Bg2 {[%emt 0:00:30]} Qe4 {[%emt 0:12:30]} 13. Be3 {[%emt 0:11:30]} Qd3 {[%emt 0:00:30]} 14. Nh4 {[%emt 0:03:30]} Qxe2+ {[%emt 0:09:30]} 15. Kxe2 {[%emt 0:00:30]} Bg6 {[%emt 0:00:30]} 16. Nxg6 {[%emt 0:08:30]} fxg6 {[%emt 0:31:30]} 17. Rhe1 {[%emt 0:03:30]} Bd6 {[%emt 0:04:30]} 18. Kd3 {[%emt 0:09:30]} Na6 {[%emt 0:12:30]} 19. Bh6 {[%emt 0:07:30]} Kf7 {[%emt 0:00:30]} 20. h4 {[%emt 0:01:30]} Rad8 {[%emt 0:01:30]} 21. Bh3 {[%emt 0:01:30]} Rhe8 {[%emt 0:00:30]} 22. Kc2 {[%emt 0:06:30]} Nc7 {[%emt 0:07:02]} 23. Re2 {[%emt 0:01:30]} c5 {[%emt 0:07:51]} 24. dxc5 {[%emt 0:05:30]} Bxc5 {[%emt 0:00:08]} 25. Rae1 {[%emt 0:00:00]} Re7 {[%emt 0:03:51]} 26. a3 {[%emt 0:02:00]} a5 {[%emt 0:01:29]} 27. b4 {[%emt 0:03:01]} axb4 {[%emt 0:00:06]} 28. axb4 {[%emt 0:00:06]} Ba7 {[%emt 0:03:07]} 29. Kb3 {[%emt 0:03:11]} Ree8 {[%emt 0:00:42]} 30. Bg2 {[%emt 0:01:02]} Rb8 {[%emt 0:00:35]} 31. Ra2 {[%emt 0:02:08]} Bb6 {[%emt 0:00:15]} 32. Rd1 {[%emt 0:02:42]} Ke7 {[%emt 0:00:34]} 33. c4 {[%emt 0:00:38]} Na8 {[%emt 0:00:43]} 34. c5 {[%emt 0:00:26]} Bc7 {[%emt 0:00:02]} 35. Ra7 {[%emt 0:00:14]} Red8 {[%emt 0:00:49]} 36. Rxd8 {[%emt 0:05:17]} Kxd8 {[%emt 0:00:02]} 37. Bxb7 {[%emt 0:00:41]} Nb6 {[%emt 0:00:16]} 38. cxb6 {[%emt 0:01:46]} Bxb6 {[%emt 0:00:01]} 39. Ra8 {[%emt 0:00:01]} Rxa8 {[%emt 0:00:29]} 40. Bxa8 {[%emt 0:00:00]} Bxf2 {[%emt 0:00:00]} 41. g4 {[%emt 0:15:17]} Bxh4 {[%emt 0:02:58]} 42. Be3 {[%emt 0:03:30]} Bg3 {[%emt 0:00:30]} 43. b5 {[%emt 0:00:47]} Bb8 {[%emt 0:00:30]} 44. Kc4 {[%emt 0:01:56]} h5 {[%emt 0:00:30]} 45. gxh5 {[%emt 0:01:13]} gxh5 {[%emt 0:00:30]} 46. Bf3 {[%emt 0:00:52]} h4 {[%emt 0:00:30]} 47. b6 {[%emt 0:00:34]} h3 {[%emt 0:02:30]} 48. Kc5 {[%emt 0:02:15]} Kd7 {[%emt 0:00:30]} 49. Bc6+ {[%emt 0:02:44]} Kd8 {[%emt 0:00:30]} 50. Kb5 {[%emt 0:02:56]} h2 {[%emt 0:02:30]} 51. Bc5 {[%emt 0:00:33]} f5 {[%emt 0:03:30]} 52. Bf8 {[%emt 0:05:26]} e5 {[%emt 0:02:30]} 53. Bh1 $2 {[%emt 0:00:14]} (53. Bg2 $18 {is the precise move to win.} e4 54. Bc5) 53... Kd7 {[%emt 0:07:16]} 54. Kc5 {[%emt 0:00:29]} e4 $11 {[%emt 0:01:22]} 55. Kd5 {[%emt 0:01:23]} Bg3 {[%emt 0:04:03]} 56. Bc5 {[%emt 0:00:47]} Bb8 {[%emt 0:01:48]} 57. Bd4 {[%emt 0:01:29]} Bg3 {[%emt 0:00:57]} 58. Kc5 {[%emt 0:01:21]} Bb8 {[%emt 0:00:26]} 59. Kb5 {[%emt 0:00:27]} Kd6 $1 {[%emt 0:08:03]} 60. Kc4 {[%emt 0:02:41]} Kc6 {[%emt 0:00:26]} 61. Bf2 {[%emt 0:00:27]} Be5 {[%emt 0:00:28]} 62. Bc5 {[%emt 0:00:42]} Bb8 {[%emt 0:00:31]} 63. Be3 {[%emt 0:00:33]} Be5 {[%emt 0:00:19]} 64. Bf2 {[%emt 0:00:36]} Bb8 {[%emt 0:00:13]} 65. Bd4 {[%emt 0:00:31]} Bg3 {[%emt 0:00:18]} 1/2-1/2